fUST/lending_fUST_20240511
["ID","MTS","AMOUNT","RATE_DAILY","PERIOD"]
[326782824,1715359838722,-248.09006631,0.00018898,2]
[326782825,1715359838731,-1712.9168005,0.00018898,2]
[326782826,1715359838741,-809.52359201,0.00018898,2]
[326782827,1715359838750,-373.04886796,0.00018899,2]
[326782828,1715359838759,-819.56290892,0.00018899,2]
[326782829,1715359838768,-15692.9802432,0.00018899,2]
[326782830,1715359838780,-309.25778132,0.00019,2]
[326782831,1715359838789,-500.0,0.00019178,2]
[326782832,1715359838800,-500.0,0.00019178,2]
[326782833,1715359838810,-500.0,0.00019178,2]
[326782834,1715359838819,-500.0,0.00019178,2]
[326782835,1715359838828,-500.0,0.00019178,2]
[326782836,1715359838838,-500.0,0.00019178,2]
[326782837,1715359838847,-500.0,0.00019178,2]
[326782838,1715359838857,-500.0,0.00019178,2]
[326782839,1715359838866,-504.98190376,0.00019178,2]
[326782840,1715359838876,-500.0,0.00019178,2]
[326782841,1715359838885,-366.89861961,0.00019178,2]
[326782842,1715359838894,-486.06476169,0.00019178,2]
[326782843,1715359838903,-205.010096,0.00019178,2]
[326782844,1715359838912,-169.993471,0.00019178,2]
[326782845,1715359838921,-1364.2184385,0.00019782,2]
[326782846,1715359838931,-386.65519908,0.00019803,2]
[326782847,1715359838939,-639.79183168,0.000199,2]
[326782848,1715359838952,-154.7215013,0.0002,2]
[326782849,1715359838970,-154.73694719,0.0002,2]
[326782850,1715359838986,-166.33225366,0.0002,2]
[326782851,1715359839001,-200.0,0.0002,2]
[326782852,1715359839017,-386.65519908,0.00020812,2]
[326782853,1715359839039,-242.04634145,0.00020909,2]
[326782854,1715359839058,-1621.83475447,0.0002091,2]
[326782855,1715359839073,-247.77709442,0.0002091,2]
[326782856,1715359839090,-440.19510808,0.0002091,2]
[326782857,1715359839105,-158.9878684,0.0002091,2]
[326782858,1715359839118,-154.10180246,0.0002091,2]
[326782859,1715359839134,-59670.11152601,0.00020911,2]
[326782860,1715359839149,-156.08139358,0.00020912,2]
[326782861,1715359839167,-154.81862194,0.00020912,2]
[326782862,1715359839183,-469.14192975,0.00020912,2]
[326782863,1715359839195,-1278.32187038,0.00020912,2]
[326782864,1715359839210,-330.43257549,0.00020912,2]
[326782865,1715359839226,-80000.0,0.00020912,2]
[326782866,1715359839239,-376.657347,0.00020912,2]
[326782867,1715359839254,-282.65639464,0.00020913,2]
[326782868,1715359839268,-166.666666,0.00021918,2]
[326782869,1715359839282,-166.666666,0.00021918,2]
[326782870,1715359839297,-5229.71545665,0.00022,2]
[326782871,1715359839311,-323.02390117,0.00022,2]
[326782872,1715359839326,-156.40335399,0.00022,2]
[326782873,1715359839339,-305.99165233,0.00022,2]
[326782874,1715359839353,-154.75239617,0.000223,2]
[326782875,1715359839367,-166.666666,0.00022431,2]
[326782876,1715359839381,-166.666666,0.00022944,2]
[326782877,1715359839396,-154.75239617,0.00023,2]
[326782878,1715359839410,-166.666666,0.00023456,2]
[326782879,1715359839423,-158.783552,0.00023459,2]
[326782880,1715359839437,-166.666666,0.00023969,2]
[326782881,1715359839452,-700.41592475,0.00024,2]
[326782882,1715359839466,-166.666666,0.00024482,2]
[326782883,1715359839480,-339.681675,0.00024482,2]
[326782884,1715359839494,-380.0,0.00024658,2]
[326782885,1715359839509,-160.0,0.00024811,2]
[326782886,1715359839523,-154.75239617,0.00025,2]
[326782888,1715359839537,-400.10978683,0.00025,2]
[326782889,1715359839552,-154.82424634,0.00025,2]
[326782890,1715359839566,-320.0,0.00025359,2]
[326782891,1715359839580,-210.1676795,0.00025786,3]
[326782892,1715359839594,-199.07716322,0.00025907,2]
[326782893,1715359839606,-910.26347865,0.00026079,2]
[326782894,1715359839620,-2041.60343904,0.000266,2]
[326782895,1715359839634,-186.81844012,0.00027,2]
[326782896,1715359839647,-1000.0,0.00027397,2]
[326782897,1715359839661,-1000.0,0.00027397,2]
[326782898,1715359839674,-608.85010552,0.00027397,2]
[326782899,1715359839688,-500.0,0.00027397,2]
[326782900,1715359839701,-500.0,0.00027397,2]
[326782901,1715359839714,-500.0,0.00027397,2]
[326782902,1715359839728,-500.0,0.00027397,2]
[326782903,1715359839741,-500.0,0.00027397,2]
[326782904,1715359839755,-632.19846025,0.00027397,2]
[326782905,1715359839768,-500.0,0.00027397,2]
[326782906,1715359839784,-500.0,0.00027397,2]
[326782907,1715359839798,-500.0,0.00027397,2]
[326782908,1715359839812,-500.0,0.00027397,2]
[326782909,1715359839825,-500.0,0.00027397,2]
[326782910,1715359839839,-500.0,0.00027397,2]
[326782911,1715359839852,-500.0,0.00027397,2]
[326782912,1715359839865,-500.0,0.00027397,2]
[326782913,1715359839879,-500.0,0.00027397,2]
[326782914,1715359839889,-500.0,0.00027397,2]
[326782915,1715359839899,-221.16623315,0.00028,2]
[326782916,1715359839908,-171.5560732,0.00028219,2]
[326782921,1715359839918,-844.36651124,0.00029,2]
[326782922,1715359840102,-189.38714008,0.00029,2]
[326782923,1715359840112,-706.37826134,0.00029707,2]
[326782924,1715359840122,-646.87418324,0.00029797,2]
[326782925,1715359840131,-460.0,0.0003,2]
[326782926,1715359840141,-259.0,0.0003,2]
[326782928,1715359840150,-158.783552,0.00031027,2]
[326782930,1715359840160,-624.31891307,0.00031193,2]
[326782931,1715359840169,-621.34370916,0.00031287,2]
[326782933,1715359840178,-742.13187021,0.00032,2]
[326782935,1715359840188,-620.21594565,0.00032752,2]
[326782936,1715359840197,-620.06718546,0.00032851,2]
[326782937,1715359840207,-173.013157,0.0003319,2]
[326782938,1715359840216,-467.00386112,0.00034,4]
[326782939,1715359840225,-620.01079728,0.0003439,2]
[326782940,1715359840235,-620.00335927,0.00034494,2]
[326782941,1715359840245,-725.62777186,0.00035,2]
[326782942,1715359840254,-154.7215013,0.00035,4]
[326782943,1715359840264,-259.0,0.0003526,2]
[326782944,1715359840275,-910.26347865,0.00035382,2]
[326782945,1715359840284,-935.45,0.000356,30]
[326782946,1715359840294,-2436.23,0.00035616,3]
[326782947,1715359840305,-18994.41817237,0.00036,2]
[326782948,1715359840316,-620.00053986,0.00036109,2]
[326782949,1715359840325,-436.62379749,0.00037,5]
[326782950,1715359840335,-620.00002699,0.00037915,2]
[326782951,1715359840345,-259.0,0.0003826,2]
[326782952,1715359840354,-158.783552,0.00038596,2]
[326782953,1715359840364,-5300.36224376,0.00038998,4]
[326782954,1715359840374,-199.98745681,0.00038998,2]
[326782955,1715359840383,-410.0439855,0.00039,14]
[326782956,1715359840394,-302.39532113,0.00039049,2]
[326782957,1715359840404,-154.75239617,0.00039088,4]
[326782958,1715359840413,-191.18408672,0.00039088,4]
[326782959,1715359840423,-159.84564958,0.00039088,20]
[326782960,1715359840431,-154.91534787,0.00039088,2]
[326782961,1715359840441,-154.7215013,0.00039127,7]
[326782962,1715359840451,-1335.75342589,0.00039207,2]
[326782963,1715359840460,-1174.39118562,0.00039207,2]
[326782964,1715359840469,-300.0,0.00039207,2]
[326782965,1715359840479,-782.64876785,0.00039207,2]
[326782966,1715359840488,-507.23061855,0.00039207,2]
[326782967,1715359840497,-287.04993241,0.00039207,2]
[326782968,1715359840507,-4093.95949096,0.00039207,2]
[326782969,1715359840516,-316.03192088,0.00039207,2]
[326782970,1715359840527,-897.72242662,0.00039207,2]
[326782971,1715359840536,-9957.88273507,0.00039207,2]
[326782972,1715359840546,-2712.94991361,0.00039207,2]
[326782973,1715359840555,-152.25589041,0.00039207,2]
[326782974,1715359840564,-155.59196369,0.00039207,2]
[326782975,1715359840573,-431.44946284,0.00039207,2]
[326782976,1715359840583,-3016.706151,0.00039207,2]
[326782977,1715359840592,-1005.01807778,0.00039207,2]
[326782978,1715359840601,-522.80237075,0.00039207,7]
[326782979,1715359840611,-620.00000135,0.00039811,2]
[326782980,1715359840620,-4280.05780043,0.0004,4]
[326782981,1715359840630,-557.0,0.00041084,5]
[326782982,1715359840639,-411.43386353,0.00041096,31]
[326782983,1715359840648,-240.99639,0.00042695,30]
[326782984,1715359840658,-494.0,0.00043006,2]
[326782985,1715359840668,-215.314,0.00043006,2]
[326782986,1715359840677,-265.179,0.00043006,2]
[326782987,1715359840686,-252.047,0.00043006,2]
[326782988,1715359840696,-557.0,0.00043247,30]
[326782989,1715359840706,-910.26347865,0.00044686,28]
[326782990,1715359840715,-151.0,0.00045,120]
[326782991,1715359840724,-557.0,0.00045523,30]
[326782992,1715359840733,-494.0,0.00046006,2]
[326782993,1715359840742,-150.0,0.00046006,2]
[326782994,1715359840751,-158.783552,0.00046164,2]
[326782995,1715359840760,-153.0,0.00046798,2]
[326782996,1715359840770,-306.0,0.00046798,2]
[326782997,1715359840780,-306.0,0.00046798,2]
[326782998,1715359840790,-153.0,0.00046906,2]
[326782999,1715359840799,-153.0,0.00046906,2]
[326783000,1715359840808,-153.0,0.00046906,2]
[326783001,1715359840818,-153.0,0.00046906,2]
[326783002,1715359840827,-153.0,0.00046906,2]
[326783003,1715359840836,-153.0,0.00046906,2]
[326783004,1715359840846,-153.0,0.00046906,2]
[326783005,1715359840855,-153.0,0.00046906,2]
[326783006,1715359840865,-153.0,0.00046906,2]
[326783007,1715359840874,-153.0,0.00046906,2]
[326783008,1715359840883,-153.0,0.00046906,2]
[326783009,1715359840892,-153.0,0.00046906,2]
[326783010,1715359840901,-153.0,0.00046906,2]
[326783011,1715359840910,-153.0,0.00046906,2]
[326783012,1715359840920,-153.0,0.00046906,2]
[326783013,1715359840930,-153.0,0.00046906,2]
[326783014,1715359840939,-153.0,0.00046906,2]
[326783015,1715359840948,-153.0,0.00046906,2]
[326783016,1715359840957,-153.0,0.00046906,2]
[326783017,1715359840967,-153.0,0.00046906,2]
[326783018,1715359840976,-153.0,0.00046906,2]
[326783019,1715359840985,-153.0,0.00046906,2]
[326783020,1715359840995,-153.0,0.00046906,2]
[326783021,1715359841004,-153.0,0.00046906,2]
[326783022,1715359841014,-153.0,0.00046906,2]
[326783023,1715359841023,-153.0,0.00046906,2]
[326783024,1715359841032,-153.0,0.00046906,2]
[326783025,1715359841042,-306.0,0.00046906,2]
[326783026,1715359841052,-306.0,0.00046953,2]
[326783027,1715359841061,-639.72290815,0.000473,120]
[326783028,1715359841071,-557.0,0.00047919,30]
[326783029,1715359841080,-589.0,0.000483,30]
[326783030,1715359841089,-309.41211698,0.0004834,10]
[326783031,1715359841099,-494.0,0.00049006,2]
[326783032,1715359841109,-150.0,0.00049006,2]
[326783033,1715359841118,-151.0,0.00049068,120]
[326783034,1715359841127,-375.15768469,0.0004988,30]
[326783035,1715359841137,-250.57899462,0.0005,2]
[326783036,1715359841146,-557.0,0.00050441,30]
[326783037,1715359841156,-173.013157,0.00050489,2]
[326783038,1715359841165,-494.0,0.00052006,120]
[326783039,1715359841175,-150.0,0.00052006,120]
[326783040,1715359841184,-5528.37048134,0.000524,120]
[326783041,1715359842020,-1824.6926,0.000524,120]
[326783042,1715359842427,-25031.37797806,0.000524,120]
[326783043,1715359842436,-222.05987417,0.00052694,4]
[326783045,1715359842445,-500.0,0.00053,120]
[326783046,1715359842455,-356.0,0.00053,120]
[326783048,1715359842464,-557.0,0.00053096,30]
[326783049,1715359842474,-557.0,0.00053096,30]
[326783051,1715359842483,-151.0,0.00053151,120]
[326783053,1715359842492,-150.0,0.00053654,2]
[326783055,1715359842501,-356.0,0.00053699,120]
[326783056,1715359842510,-158.783552,0.00053733,2]
[326783058,1715359842519,-910.26347865,0.00053989,28]
[326783060,1715359842530,-150.0,0.00054213,2]
[326783062,1715359842539,-246.34353574,0.00054246,4]
[326783064,1715359842549,-151.0,0.000547,50]
[326783066,1715359842558,-500.0,0.000547,45]
[326783068,1715359842567,-150.0,0.00054772,2]
[326783069,1715359842576,-890.67521582,0.00054792,4]
[326783071,1715359842585,-1348.23552051,0.00054792,4]
[326783073,1715359842594,-314.98827974,0.00054792,4]
[326783075,1715359842604,-1092.09177518,0.00054792,4]
[326783077,1715359842613,-379.96231687,0.00054792,2]
[326783079,1715359842622,-154.7215013,0.00054793,4]
[326783081,1715359842631,-800.0,0.00054793,7]
[326783083,1715359842640,-800.0,0.00054793,7]
[326783084,1715359842649,-800.0,0.00054793,7]
[326783085,1715359842659,-800.0,0.00054793,7]
[326783087,1715359842668,-800.0,0.00054793,7]
[326783089,1715359842677,-800.0,0.00054793,7]
[326783091,1715359842686,-800.0,0.00054793,7]
[326783093,1715359842695,-800.0,0.00054793,7]
[326783095,1715359842704,-800.0,0.00054793,7]
[326783097,1715359842714,-800.0,0.00054793,7]
[326783099,1715359842723,-296.5367029,0.00054794,15]
[326783101,1715359842732,-2090.3889583,0.00054794,4]
[326783103,1715359842741,-500.0,0.00054794,120]
[326783105,1715359842750,-500.0,0.00054794,120]
[326783107,1715359842759,-500.0,0.00054794,120]
[326783109,1715359842768,-500.0,0.00054794,120]
[326783110,1715359842778,-500.0,0.00054794,120]
[326783112,1715359842787,-426.47280926,0.00054794,120]
[326783114,1715359842796,-500.0,0.00054794,120]
[326783115,1715359842805,-500.0,0.00054794,120]
[326783116,1715359842815,-500.0,0.00054794,120]
[326783117,1715359842824,-500.0,0.00054794,120]
[326783118,1715359842833,-500.0,0.00054794,120]
[326783119,1715359842843,-500.0,0.00054794,120]
[326783120,1715359842852,-500.0,0.00054794,120]
[326783121,1715359842861,-525.32,0.00054794,120]
[326783122,1715359842959,-500.0,0.00054794,120]
[326783123,1715359842976,-508.58257021,0.00054794,120]
[326783124,1715359842986,-500.0,0.00054794,120]
[326783125,1715359842995,-521.3148667,0.00054794,120]
[326783126,1715359843004,-500.0,0.00054794,120]
[326783127,1715359843013,-500.0,0.00054794,120]
[326783128,1715359843022,-500.0,0.00054794,120]
[326783129,1715359843032,-500.0,0.00054794,120]
[326783130,1715359843041,-500.0,0.00054794,120]
[326783131,1715359843050,-395.57433577,0.00054794,120]
[326783132,1715359843059,-500.0,0.00054794,120]
[326783133,1715359843068,-500.0,0.00054794,120]
[326783134,1715359843077,-579.97,0.00054794,120]
[326783135,1715359843086,-500.0,0.00054794,120]
[326783136,1715359843095,-500.0,0.00054794,120]
[326783137,1715359843104,-507.41144926,0.00054794,120]
[326783138,1715359843113,-500.0,0.00054794,2]
[326783139,1715359843122,-500.0,0.00054794,120]
[326783140,1715359843131,-500.0,0.00054794,7]
[326783141,1715359843140,-500.0,0.00054794,120]
[326783142,1715359843150,-500.0,0.00054794,120]
[326783143,1715359843159,-500.0,0.00054794,120]
[326783144,1715359843168,-500.0,0.00054794,120]
[326783145,1715359843177,-852.73,0.00054794,120]
[326783146,1715359843186,-500.0,0.00054794,120]
[326783147,1715359843195,-512.76,0.00054794,120]
[326783148,1715359843204,-500.0,0.00054794,120]
[326783149,1715359843213,-500.0,0.00054794,120]
[326783150,1715359843222,-500.0,0.00054794,120]
[326783151,1715359843231,-500.0,0.00054794,120]
[326783152,1715359843240,-500.0,0.00054794,120]
[326783153,1715359843250,-500.0,0.00054794,120]
[326783154,1715359843259,-500.0,0.00054794,120]
[326783155,1715359843268,-500.0,0.00054794,120]
[326783156,1715359843279,-408.12685944,0.00054794,120]
[326783157,1715359843474,-91.87314056,0.00054794,120]
[326783158,1715359843483,-506.16,0.00054794,120]
[326783159,1715359843493,-500.0,0.00054794,120]
[326783160,1715359843503,-500.0,0.00054794,120]
[326783161,1715359843512,-500.0,0.00054794,120]
[326783162,1715359843521,-500.0,0.00054794,120]
[326783163,1715359843532,-500.0,0.00054794,120]
[326783164,1715359843541,-2303.98,0.00054794,4]
[326783165,1715359843550,-500.0,0.00054794,120]
[326783166,1715359843559,-500.0,0.00054794,120]
[326783167,1715359843568,-500.0,0.00054794,120]
[326783168,1715359843577,-161.00832384,0.00054794,120]
[326783176,1715359845978,-639.79183162,0.000199,2]
[326783177,1715359845988,-1551.78493084,0.00020913,2]
[326783178,1715359845998,-2600.74,0.00054784,3]
[326783179,1715359846007,-338.99167616,0.00054794,120]
[326783180,1715359846017,-500.0,0.00054794,120]
[326783181,1715359846026,-500.0,0.00054794,7]
[326783182,1715359846035,-500.0,0.00054794,120]
[326783183,1715359846044,-151.0,0.00054794,120]
[326783184,1715359846053,-500.0,0.00054794,120]
[326783185,1715359846063,-500.0,0.00054794,120]
[326783186,1715359846072,-500.0,0.00054794,120]
[326783187,1715359846081,-500.0,0.00054794,120]
[326783188,1715359846092,-500.0,0.00054794,120]
[326783189,1715359846101,-500.0,0.00054794,120]
[326783190,1715359846110,-500.0,0.00054794,120]
[326783191,1715359846119,-500.0,0.00054794,120]
[326783192,1715359846128,-500.0,0.00054794,120]
[326783193,1715359846137,-500.0,0.00054794,120]
[326783194,1715359846146,-500.0,0.00054794,120]
[326783195,1715359846155,-500.0,0.00054794,120]
[326783196,1715359846164,-500.0,0.00054794,120]
[326783197,1715359846174,-500.0,0.00054794,2]
[326783198,1715359846183,-500.0,0.00054794,120]
[326783199,1715359846192,-504.85103924,0.00054794,120]
[326783200,1715359846201,-504.77265909,0.00054794,120]
[326783201,1715359846210,-508.76215079,0.00054794,120]
[326783202,1715359846220,-500.0,0.00054794,120]
[326783203,1715359846229,-500.0,0.00054794,120]
[326783204,1715359846238,-500.0,0.00054794,120]
[326783205,1715359846247,-1641.78,0.00054794,2]
[326783206,1715359846256,-224.63829922,0.00054794,120]
[326783207,1715359846266,-500.0,0.00054794,120]
[326783208,1715359846275,-500.0,0.00054794,120]
[326783209,1715359846284,-500.0,0.00054794,120]
[326783210,1715359846294,-500.0,0.00054794,120]
[326783211,1715359846304,-500.0,0.00054794,120]
[326783212,1715359846315,-500.0,0.00054794,120]
[326783213,1715359846324,-500.0,0.00054794,120]
[326783214,1715359846334,-500.0,0.00054794,120]
[326783215,1715359846344,-500.0,0.00054794,120]
[326783216,1715359846353,-500.0,0.00054794,120]
[326783217,1715359846363,-500.0,0.00054794,120]
[326783218,1715359846371,-611.98065168,0.00054794,120]
[326783219,1715359846380,-500.0,0.00054794,120]
[326783220,1715359846390,-355.14394679,0.00054794,120]
[326783221,1715359846420,-144.85605321,0.00054794,120]
[326783222,1715359846428,-500.0,0.00054794,120]
[326783223,1715359846438,-500.0,0.00054794,120]
[326783224,1715359846447,-534.64484723,0.00054794,120]
[326783225,1715359846456,-500.0,0.00054794,120]
[326783226,1715359846465,-500.0,0.00054794,120]
[326783227,1715359846475,-500.0,0.00054794,120]
[326783228,1715359846484,-500.0,0.00054794,120]
[326783229,1715359846493,-500.0,0.00054794,120]
[326783230,1715359846502,-500.0,0.00054794,120]
[326783231,1715359846511,-618.17,0.00054794,120]
[326783232,1715359846520,-1642.83216005,0.00054794,120]
[326783233,1715359846534,-280.63783995,0.00054794,120]
[326783234,1715359846542,-500.0,0.00054794,120]
[326783235,1715359846551,-60.48529255,0.00054794,120]
[326783236,1715359846562,-439.51470745,0.00054794,120]
[326783237,1715359846571,-152.22853703,0.00054794,120]
[326783238,1715359846581,-500.0,0.00054794,120]
[326783239,1715359846590,-500.0,0.00054794,120]
[326783240,1715359846599,-223.05699614,0.00054794,120]
[326783241,1715359846608,-500.0,0.00054794,120]
[326783242,1715359846617,-499.92111462,0.00054794,120]
[326783243,1715359846626,-500.0,0.00054794,120]
[326783244,1715359846635,-500.0,0.00054794,120]
[326783245,1715359846644,-500.0,0.00054794,120]
[326783246,1715359846653,-500.0,0.00054794,120]
[326783247,1715359846663,-500.0,0.00054794,120]
[326783248,1715359846674,-500.0,0.00054794,120]
[326783249,1715359846683,-500.0,0.00054794,120]
[326783250,1715359846692,-500.0,0.00054794,120]
[326783251,1715359846702,-576.4,0.00054794,120]
[326783252,1715359846711,-500.0,0.00054794,120]
[326783253,1715359846720,-514.16044114,0.00054794,120]
[326783254,1715359846730,-500.0,0.00054794,120]
[326783255,1715359846738,-506.40375481,0.00054794,30]
[326783256,1715359846747,-500.0,0.00054794,120]
[326783257,1715359846756,-500.0,0.00054794,120]
[326783258,1715359846765,-500.0,0.00054794,120]
[326783259,1715359846774,-500.0,0.00054794,120]
[326783260,1715359846784,-521.79,0.00054794,120]
[326783261,1715359846793,-500.0,0.00054794,120]
[326783262,1715359846803,-500.0,0.00054794,120]
[326783263,1715359846812,-500.0,0.00054794,120]
[326783264,1715359846821,-500.0,0.00054794,120]
[326783265,1715359846830,-199.69161271,0.00054794,30]
[326783266,1715359846841,-500.0,0.00054794,120]
[326783267,1715359846850,-616.8,0.00054794,120]
[326783268,1715359846956,-500.0,0.00054794,120]
[326783269,1715359846965,-803.67,0.00054794,120]
[326783270,1715359846975,-574.84,0.00054794,120]
[326783271,1715359846984,-500.0,0.00054794,120]
[326783272,1715359846993,-500.0,0.00054794,120]
[326783273,1715359847002,-500.0,0.00054794,120]
[326783274,1715359847011,-500.0,0.00054794,120]
[326783275,1715359847020,-500.0,0.00054794,120]
[326783276,1715359847030,-500.0,0.00054794,120]
[326783277,1715359847039,-500.0,0.00054794,120]
[326783278,1715359847048,-500.0,0.00054794,120]
[326783279,1715359847057,-500.0,0.00054794,120]
[326783280,1715359847067,-500.0,0.00054794,120]
[326783281,1715359847076,-500.0,0.00054794,120]
[326783282,1715359847087,-500.0,0.00054794,120]
[326783283,1715359847097,-500.0,0.00054794,120]
[326783284,1715359847106,-500.0,0.00054794,120]
[326783285,1715359847115,-500.0,0.00054794,120]
[326783286,1715359847124,-500.0,0.00054794,120]
[326783287,1715359847134,-500.0,0.00054794,120]
[326783288,1715359847144,-500.0,0.00054794,120]
[326783289,1715359847154,-500.0,0.00054794,120]
[326783290,1715359847163,-473.52726491,0.00054794,120]
[326783291,1715359847173,-500.0,0.00054794,120]
[326783292,1715359847182,-500.0,0.00054794,120]
[326783293,1715359847191,-500.0,0.00054794,120]
[326783294,1715359847200,-500.0,0.00054794,120]
[326783295,1715359847209,-500.0,0.00054794,120]
[326783296,1715359847219,-500.0,0.00054794,120]
[326783297,1715359847228,-500.0,0.00054794,120]
[326783298,1715359847237,-500.0,0.00054794,120]
[326783299,1715359847247,-173.10638415,0.00054794,120]
[326783300,1715359847256,-500.0,0.00054794,120]
[326783301,1715359847265,-500.0,0.00054794,120]
[326783302,1715359847275,-500.0,0.00054794,120]
[326783303,1715359847284,-500.0,0.00054794,120]
[326783304,1715359847293,-500.0,0.00054794,7]
[326783305,1715359847303,-500.49267483,0.00054794,120]
[326783306,1715359847314,-500.0,0.00054794,120]
[326783307,1715359847323,-500.0,0.00054794,120]
[326783308,1715359847332,-500.0,0.00054794,120]
[326783309,1715359847341,-692.34,0.00054794,120]
[326783310,1715359847350,-500.0,0.00054794,120]
[326783311,1715359847361,-500.0,0.00054794,120]
[326783312,1715359847370,-1063.67,0.00054794,120]
[326783313,1715359847379,-500.0,0.00054794,120]
[326783314,1715359847388,-500.0,0.00054794,120]
[326783315,1715359847399,-587.90374634,0.00054794,120]
[326783316,1715359847408,-173.91031753,0.00054794,120]
[326783317,1715359847417,-500.0,0.00054794,120]
[326783318,1715359847427,-500.0,0.00054794,120]
[326783319,1715359847436,-500.0,0.00054794,120]
[326783320,1715359847445,-500.0,0.00054794,120]
[326783321,1715359847454,-500.0,0.00054794,120]
[326783322,1715359847463,-500.0,0.00054794,120]
[326783323,1715359847471,-500.0,0.00054794,120]
[326783324,1715359847481,-500.0,0.00054794,120]
[326783325,1715359847493,-501.93658835,0.00054794,120]
[326783326,1715359847502,-515.03569942,0.00054794,120]
[326783327,1715359847512,-500.0,0.00054794,120]
[326783328,1715359847521,-1077.7,0.00054794,120]
[326783329,1715359847531,-396.21187455,0.00054794,120]
[326783330,1715359847540,-349.34175952,0.00054794,120]
[326783331,1715359847549,-500.0,0.00054794,120]
[326783332,1715359847558,-1253.24,0.00054794,120]
[326783333,1715359847567,-500.0,0.00054794,120]
[326783334,1715359847576,-500.0,0.00054794,120]
[326783335,1715359847586,-500.0,0.00054794,120]
[326783336,1715359847595,-500.0,0.00054794,120]
[326783337,1715359847604,-500.0,0.00054794,120]
[326783338,1715359847614,-500.0,0.00054794,120]
[326783339,1715359847623,-500.0,0.00054794,120]
[326783340,1715359847634,-317.52214154,0.00054794,120]
[326783341,1715359847643,-500.0,0.00054794,120]
[326783342,1715359847652,-500.0,0.00054794,120]
[326783343,1715359847662,-500.0,0.00054794,120]
[326783344,1715359847672,-500.0,0.00054794,120]
[326783345,1715359847682,-500.0,0.00054794,120]
[326783346,1715359847692,-1000.0,0.00054794,120]
[326783347,1715359847701,-1228.63,0.00054794,120]
[326783348,1715359847710,-500.0,0.00054794,120]
[326783349,1715359847719,-868.99,0.00054794,120]
[326783350,1715359847728,-500.0,0.00054794,120]
[326783351,1715359847737,-500.0,0.00054794,120]
[326783352,1715359847746,-500.0,0.00054794,120]
[326783353,1715359847755,-500.0,0.00054794,120]
[326783354,1715359847764,-500.0,0.00054794,120]
[326783355,1715359847773,-776.41,0.00054794,120]
[326783356,1715359847784,-500.0,0.00054794,120]
[326783357,1715359847793,-500.0,0.00054794,120]
[326783358,1715359847802,-654.7,0.00054794,120]
[326783359,1715359847812,-500.0,0.00054794,120]
[326783360,1715359847821,-500.0,0.00054794,20]
[326783361,1715359847831,-500.0,0.00054794,120]
[326783362,1715359847840,-500.0,0.00054794,120]
[326783363,1715359847849,-898.47,0.00054794,120]
[326783364,1715359847859,-585.96,0.00054794,120]
[326783365,1715359847868,-514.73619809,0.00054794,120]
[326783366,1715359847877,-500.0,0.00054794,120]
[326783367,1715359847886,-500.0,0.00054794,120]
[326783368,1715359847896,-501.37,0.00054794,120]
[326783369,1715359847905,-500.0,0.00054794,120]
[326783370,1715359847914,-500.0,0.00054794,120]
[326783371,1715359847924,-500.0,0.00054794,120]